[Event "Titled Tuesday Blitz February 15 Early 2022"]
[White "Dreev, Aleksey"]
[Black "Bettalli, Francesco"]
[WhiteFideId "4100107"]
[BlackFideId "2816453"]
[WhiteElo "2636"]
[BlackElo "2216"]
[Result "1-0"]
[Round "04"]
[TimeControl "180+1"]
[Date "2022.02.15"]
[WhiteClock "0:01:02"]
[BlackClock "0:00:59"]

1. d4 {[%clk 0:03:00]}  e5 {[%clk 0:02:58]} 2. c3 {[%clk 0:02:58]}  exd4 {[%clk 0:02:58]} 3. cxd4 {[%clk 0:02:58]}  g6 {[%clk 0:02:58]} 4. Nc3 {[%clk 0:02:57]}  Bg7 {[%clk 0:02:59]} 5. e4 {[%clk 0:02:57]}  c6 {[%clk 0:02:59]} 6. h4 {[%clk 0:02:57]}  d5 {[%clk 0:02:59]} 7. e5 {[%clk 0:02:57]}  h5 {[%clk 0:02:59]} 8. Bg5 {[%clk 0:02:56]}  Qb6 {[%clk 0:02:57]} 9. Qd2 {[%clk 0:02:56]}  Bf5 {[%clk 0:02:54]} 10. Nge2 {[%clk 0:02:54]}  Nd7 {[%clk 0:02:54]} 11. Ng3 {[%clk 0:02:53]}  Be6 {[%clk 0:02:53]} 12. Be2 {[%clk 0:02:51]}  Nh6 {[%clk 0:02:52]} 13. O-O {[%clk 0:02:48]}  Nf5 {[%clk 0:02:52]} 14. Nxf5 {[%clk 0:02:47]}  Bxf5 {[%clk 0:02:53]} 15. Bf3 {[%clk 0:02:43]}  Nf8 {[%clk 0:02:52]} 16. Bxd5 {[%clk 0:02:40]}  Ne6 {[%clk 0:02:31]} 17. Bxe6 {[%clk 0:02:31]}  Bxe6 {[%clk 0:02:24]} 18. Ne4 {[%clk 0:02:30]}  O-O {[%clk 0:02:23]} 19. Nf6+ {[%clk 0:02:25]}  Kh8 {[%clk 0:02:22]} 20. Bh6 {[%clk 0:02:26]}  Rfd8 {[%clk 0:02:17]} 21. Rad1 {[%clk 0:02:08]}  a5 {[%clk 0:02:00]} 22. Rfe1 {[%clk 0:02:02]}  Qb4 {[%clk 0:02:00]} 23. Qe3 {[%clk 0:01:51]}  Qf8 {[%clk 0:01:53]} 24. Bxg7+ {[%clk 0:01:49]}  Kxg7 {[%clk 0:01:54]} 25. a3 {[%clk 0:01:42]}  Bd5 {[%clk 0:01:42]} 26. Qg5 {[%clk 0:01:39]}  Kh8 {[%clk 0:01:40]} 27. Re3 {[%clk 0:01:36]}  Be6 {[%clk 0:01:33]} 28. Nxh5 {[%clk 0:01:33]}  c5 {[%clk 0:01:22]} 29. Nf4 {[%clk 0:01:14]}  Bf5 {[%clk 0:01:16]} 30. d5 {[%clk 0:01:14]}  Qg7 {[%clk 0:01:09]} 31. h5 {[%clk 0:01:12]}  Re8 {[%clk 0:01:08]} 32. h6 {[%clk 0:01:12]}  Qh7 {[%clk 0:01:05]} 33. d6 {[%clk 0:01:09]}  Be6 {[%clk 0:01:00]} 34. d7 {[%clk 0:01:04]}  Red8 {[%clk 0:00:59]} 35. Qf6+ {[%clk 0:01:05]}  Kg8 {[%clk 0:00:58]} 36. Nxe6 {[%clk 0:01:03]}  fxe6 {[%clk 0:00:59]} 37. Rg3 {[%clk 0:01:02]} 1-0


[Site "https://www.chess.com"]

[Event "Titled Tuesday Blitz February 15 Early 2022"]
[White "Dubov, Daniil"]
[Black "Pichot, Alan"]
[WhiteFideId "24126055"]
[BlackFideId "110973"]
[WhiteElo "2791"]
[BlackElo "2543"]
[Result "0-1"]
[Round "04"]
[TimeControl "180+1"]
[Date "2022.02.15"]
[WhiteClock "0:00:03"]
[BlackClock "0:00:02"]

1. d4 {[%clk 0:02:59]}  Nf6 {[%clk 0:02:59]} 2. Nf3 {[%clk 0:03:00]}  d5 {[%clk 0:02:59]} 3. c4 {[%clk 0:02:58]}  e6 {[%clk 0:02:59]} 4. g3 {[%clk 0:02:58]}  Be7 {[%clk 0:02:56]} 5. Bg2 {[%clk 0:02:59]}  O-O {[%clk 0:02:56]} 6. Qc2 {[%clk 0:02:59]}  c6 {[%clk 0:02:45]} 7. Nbd2 {[%clk 0:02:54]}  a5 {[%clk 0:02:44]} 8. e4 {[%clk 0:02:53]}  b6 {[%clk 0:02:43]} 9. e5 {[%clk 0:02:52]}  Nfd7 {[%clk 0:02:43]} 10. h4 {[%clk 0:02:52]}  h6 {[%clk 0:02:40]} 11. Nf1 {[%clk 0:02:49]}  Na6 {[%clk 0:02:35]} 12. a3 {[%clk 0:02:45]}  Bb7 {[%clk 0:02:23]} 13. cxd5 {[%clk 0:02:34]}  cxd5 {[%clk 0:02:19]} 14. Ne3 {[%clk 0:02:35]}  Rc8 {[%clk 0:01:52]} 15. Qb1 {[%clk 0:02:31]}  Nc7 {[%clk 0:01:21]} 16. Ng4 {[%clk 0:02:27]}  Ba6 {[%clk 0:01:12]} 17. Bf4 {[%clk 0:02:07]}  f5 {[%clk 0:01:05]} 18. exf6 {[%clk 0:02:02]}  Nxf6 {[%clk 0:01:06]} 19. Nxh6+ {[%clk 0:01:51]}  gxh6 {[%clk 0:00:49]} 20. Qg6+ {[%clk 0:01:51]}  Kh8 {[%clk 0:00:49]} 21. Qxh6+ {[%clk 0:01:52]}  Kg8 {[%clk 0:00:47]} 22. Bh3 {[%clk 0:01:28]}  Rf7 {[%clk 0:00:17]} 23. Ng5 {[%clk 0:01:03]}  Qf8 {[%clk 0:00:17]} 24. Nxf7 {[%clk 0:00:58]}  Kxf7 {[%clk 0:00:17]} 25. Qxf8+ {[%clk 0:00:52]}  Bxf8 {[%clk 0:00:18]} 26. Rc1 {[%clk 0:00:42]}  Bc4 {[%clk 0:00:14]} 27. Bf1 {[%clk 0:00:36]}  Nb5 {[%clk 0:00:13]} 28. Be3 {[%clk 0:00:22]}  Nd6 {[%clk 0:00:07]} 29. h5 {[%clk 0:00:17]}  Nf5 {[%clk 0:00:04]} 30. h6 {[%clk 0:00:12]}  Kg8 {[%clk 0:00:02]} 31. b3 {[%clk 0:00:06]}  Bxa3 {[%clk 0:00:02]} 32. Rxc4 {[%clk 0:00:03]}  dxc4 {[%clk 0:00:02]} 33. Bxc4 {[%clk 0:00:03]}  Re8 {[%clk 0:00:01]} 34. Bg5 {[%clk 0:00:03]}  Bb4+ {[%clk 0:00:01]} 35. Kd1 {[%clk 0:00:03]}  Ne4 {[%clk 0:00:02]} 0-1


[Site "https://www.chess.com"]

[Event "Titled Tuesday Blitz February 15 Early 2022"]
[White "Dushyant Sharma"]
[Black "Hamitevici, Vladimir"]
[WhiteFideId "25065130"]
[BlackFideId "13902393"]
[WhiteElo "2012"]
[BlackElo "2359"]
[Result "1-0"]
[Round "04"]
[TimeControl "180+1"]
[Date "2022.02.15"]
[WhiteClock "0:00:08"]
[BlackClock "0:00:06"]

1. e4 {[%clk 0:03:00]}  g6 {[%clk 0:02:56]} 2. d4 {[%clk 0:03:00]}  Bg7 {[%clk 0:02:57]} 3. Nc3 {[%clk 0:02:59]}  c6 {[%clk 0:02:56]} 4. Be3 {[%clk 0:02:59]}  d5 {[%clk 0:02:55]} 5. e5 {[%clk 0:02:58]}  h5 {[%clk 0:02:55]} 6. f3 {[%clk 0:02:54]}  Nh6 {[%clk 0:02:55]} 7. Bd3 {[%clk 0:02:54]}  Bf5 {[%clk 0:02:53]} 8. Qd2 {[%clk 0:02:52]}  Bxd3 {[%clk 0:02:53]} 9. Qxd3 {[%clk 0:02:53]}  Nf5 {[%clk 0:02:52]} 10. Bf2 {[%clk 0:02:53]}  e6 {[%clk 0:02:50]} 11. g4 {[%clk 0:02:48]}  Nh4 {[%clk 0:02:45]} 12. O-O-O {[%clk 0:02:46]}  Nd7 {[%clk 0:02:43]} 13. Kb1 {[%clk 0:02:45]}  a6 {[%clk 0:02:20]} 14. h3 {[%clk 0:02:28]}  c5 {[%clk 0:02:14]} 15. f4 {[%clk 0:02:28]}  cxd4 {[%clk 0:02:02]} 16. Qxd4 {[%clk 0:01:52]}  Rc8 {[%clk 0:01:53]} 17. Nxd5 {[%clk 0:01:38]}  exd5 {[%clk 0:01:50]} 18. Qxd5 {[%clk 0:01:39]}  Qc7 {[%clk 0:01:30]} 19. c3 {[%clk 0:01:20]}  g5 {[%clk 0:01:30]} 20. e6 {[%clk 0:01:04]}  Nf6 {[%clk 0:00:41]} 21. exf7+ {[%clk 0:00:51]}  Qxf7 {[%clk 0:00:41]} 22. Qxf7+ {[%clk 0:00:33]}  Kxf7 {[%clk 0:00:42]} 23. fxg5 {[%clk 0:00:33]}  Ne4 {[%clk 0:00:34]} 24. Bxh4 {[%clk 0:00:33]}  hxg4 {[%clk 0:00:34]} 25. hxg4 {[%clk 0:00:32]}  Bxc3 {[%clk 0:00:30]} 26. Rf1+ {[%clk 0:00:27]}  Kg7 {[%clk 0:00:28]} 27. Nf3 {[%clk 0:00:26]}  Bd2 {[%clk 0:00:11]} 28. Rd1 {[%clk 0:00:22]}  Rhd8 {[%clk 0:00:12]} 29. g6 {[%clk 0:00:22]}  Rd3 {[%clk 0:00:11]} 30. Ne5 {[%clk 0:00:22]}  Rd5 {[%clk 0:00:12]} 31. Nf3 {[%clk 0:00:14]}  Kxg6 {[%clk 0:00:11]} 32. Be1 {[%clk 0:00:12]}  Rf8 {[%clk 0:00:10]} 33. Nxd2 {[%clk 0:00:12]}  Rfd8 {[%clk 0:00:08]} 34. Kc2 {[%clk 0:00:09]}  Rc8+ {[%clk 0:00:08]} 35. Kb1 {[%clk 0:00:10]}  Rcd8 {[%clk 0:00:08]} 36. Rh2 {[%clk 0:00:10]}  Rd3 {[%clk 0:00:07]} 37. Kc2 {[%clk 0:00:10]}  R3d4 {[%clk 0:00:06]} 38. Nxe4 {[%clk 0:00:10]}  Rxd1 {[%clk 0:00:07]} 39. Bd2 {[%clk 0:00:10]}  Rg1 {[%clk 0:00:07]} 40. Rh6+ {[%clk 0:00:10]}  Kg7 {[%clk 0:00:08]} 41. g5 {[%clk 0:00:11]}  Rg2 {[%clk 0:00:08]} 42. Nd6 {[%clk 0:00:10]}  Kg8 {[%clk 0:00:07]} 43. Kb3 {[%clk 0:00:08]}  Rg3+ {[%clk 0:00:06]} 44. Bc3 {[%clk 0:00:08]}  Rxg5 {[%clk 0:00:06]} 45. Rh8# {[%clk 0:00:08]} 1-0


[Site "https://www.chess.com"]

[Event "Titled Tuesday Blitz February 15 Early 2022"]
[White "Dzhaparov, Medet"]
[Black "Piliczewski, Bogusz"]
[WhiteFideId "13803689"]
[BlackFideId "1104144"]
[WhiteElo "1702"]
[BlackElo "1896"]
[Result "1-0"]
[Round "04"]
[TimeControl "180+1"]
[Date "2022.02.15"]
[WhiteClock "0:01:16"]
[BlackClock "0:00:02"]

1. e4 {[%clk 0:02:56]}  c6 {[%clk 0:03:00]} 2. d4 {[%clk 0:02:55]}  d5 {[%clk 0:03:00]} 3. exd5 {[%clk 0:02:56]}  cxd5 {[%clk 0:03:00]} 4. Bb5+ {[%clk 0:02:56]}  Nc6 {[%clk 0:02:58]} 5. Nc3 {[%clk 0:02:55]}  Nf6 {[%clk 0:02:57]} 6. Nf3 {[%clk 0:02:56]}  Bg4 {[%clk 0:02:57]} 7. O-O {[%clk 0:02:56]}  e6 {[%clk 0:02:54]} 8. h3 {[%clk 0:02:56]}  Bh5 {[%clk 0:02:53]} 9. Be2 {[%clk 0:02:55]}  Bxf3 {[%clk 0:02:50]} 10. Bxf3 {[%clk 0:02:54]}  h6 {[%clk 0:02:44]} 11. Re1 {[%clk 0:02:53]}  Be7 {[%clk 0:02:43]} 12. Bf4 {[%clk 0:02:51]}  O-O {[%clk 0:02:42]} 13. Be5 {[%clk 0:02:50]}  Rc8 {[%clk 0:02:32]} 14. Bxf6 {[%clk 0:02:47]}  Bxf6 {[%clk 0:02:31]} 15. Ne2 {[%clk 0:02:46]}  Qb6 {[%clk 0:02:29]} 16. Rb1 {[%clk 0:02:43]}  Nxd4 {[%clk 0:02:26]} 17. Nxd4 {[%clk 0:02:42]}  Bxd4 {[%clk 0:02:23]} 18. Qe2 {[%clk 0:02:28]}  Rc7 {[%clk 0:02:08]} 19. c3 {[%clk 0:02:27]}  Bf6 {[%clk 0:02:05]} 20. Red1 {[%clk 0:02:22]}  Rfc8 {[%clk 0:02:03]} 21. Rd3 {[%clk 0:02:21]}  d4 {[%clk 0:01:57]} 22. cxd4 {[%clk 0:02:19]}  Bxd4 {[%clk 0:01:50]} 23. Rd2 {[%clk 0:02:08]}  Rc1+ {[%clk 0:01:47]} 24. Rxc1 {[%clk 0:02:00]}  Rxc1+ {[%clk 0:01:45]} 25. Kh2 {[%clk 0:02:00]}  Qc7+ {[%clk 0:01:26]} 26. g3 {[%clk 0:01:58]}  Bf6 {[%clk 0:01:19]} 27. b3 {[%clk 0:01:54]}  g6 {[%clk 0:01:11]} 28. Qb5 {[%clk 0:01:49]}  b6 {[%clk 0:00:59]} 29. Qe8+ {[%clk 0:01:38]}  Kg7 {[%clk 0:00:58]} 30. Rd7 {[%clk 0:01:37]}  Qxd7 {[%clk 0:00:29]} 31. Qxd7 {[%clk 0:01:38]}  Rc2 {[%clk 0:00:26]} 32. Qxa7 {[%clk 0:01:34]}  Rxf2+ {[%clk 0:00:24]} 33. Bg2 {[%clk 0:01:34]}  Bd4 {[%clk 0:00:20]} 34. a4 {[%clk 0:01:24]}  Rb2 {[%clk 0:00:18]} 35. Qd7 {[%clk 0:01:22]}  Bc5 {[%clk 0:00:14]} 36. Qb5 {[%clk 0:01:21]}  Rb1 {[%clk 0:00:12]} 37. a5 {[%clk 0:01:19]}  Bg1+ {[%clk 0:00:10]} 38. Kh1 {[%clk 0:01:18]}  Bf2+ {[%clk 0:00:05]} 39. Bf1 {[%clk 0:01:17]}  bxa5 {[%clk 0:00:02]} 40. Kg2 {[%clk 0:01:16]} 1-0


[Site "https://www.chess.com"]

[Event "Titled Tuesday Blitz February 15 Early 2022"]
[White "Eggleston, Thomas A"]
[Black "Maranhao,Jose Renato Ruiz"]
[WhiteFideId "412139"]
[BlackFideId "2135175"]
[WhiteElo "2174"]
[BlackElo "1970"]
[Result "0-1"]
[Round "04"]
[TimeControl "180+1"]
[Date "2022.02.15"]
[WhiteClock "0:00:02"]
[BlackClock "0:00:03"]

1. e4 {[%clk 0:03:00]}  c6 {[%clk 0:02:58]} 2. d4 {[%clk 0:03:00]}  d5 {[%clk 0:02:59]} 3. exd5 {[%clk 0:03:00]}  cxd5 {[%clk 0:03:00]} 4. c4 {[%clk 0:03:00]}  Nc6 {[%clk 0:02:59]} 5. Nc3 {[%clk 0:02:59]}  Nf6 {[%clk 0:02:58]} 6. Bg5 {[%clk 0:02:58]}  Ne4 {[%clk 0:02:51]} 7. Nxe4 {[%clk 0:02:47]}  dxe4 {[%clk 0:02:51]} 8. d5 {[%clk 0:02:47]}  Ne5 {[%clk 0:02:51]} 9. Qd4 {[%clk 0:02:33]}  f6 {[%clk 0:02:52]} 10. Bf4 {[%clk 0:02:28]}  e6 {[%clk 0:02:43]} 11. O-O-O {[%clk 0:02:17]}  Nd3+ {[%clk 0:02:06]} 12. Bxd3 {[%clk 0:02:16]}  exd3 {[%clk 0:02:07]} 13. Nf3 {[%clk 0:01:42]}  e5 {[%clk 0:01:59]} 14. Rhe1 {[%clk 0:01:41]}  Be7 {[%clk 0:01:32]} 15. Nxe5 {[%clk 0:01:40]}  fxe5 {[%clk 0:01:31]} 16. Bxe5 {[%clk 0:01:40]}  O-O {[%clk 0:00:20]} 17. Rxd3 {[%clk 0:01:03]}  Bf5 {[%clk 0:00:15]} 18. Rg3 {[%clk 0:01:00]}  Bf6 {[%clk 0:00:14]} 19. Bxf6 {[%clk 0:00:54]}  Qxf6 {[%clk 0:00:15]} 20. Qxf6 {[%clk 0:00:49]}  Rxf6 {[%clk 0:00:16]} 21. Re7 {[%clk 0:00:49]}  Rf7 {[%clk 0:00:15]} 22. Rge3 {[%clk 0:00:44]}  Rc8 {[%clk 0:00:07]} 23. b3 {[%clk 0:00:41]}  b5 {[%clk 0:00:08]} 24. Re8+ {[%clk 0:00:21]}  Rf8 {[%clk 0:00:06]} 25. Rxf8+ {[%clk 0:00:22]}  Kxf8 {[%clk 0:00:07]} 26. Rf3 {[%clk 0:00:20]}  Ke7 {[%clk 0:00:07]} 27. Rxf5 {[%clk 0:00:19]}  bxc4 {[%clk 0:00:08]} 28. bxc4 {[%clk 0:00:19]}  Rxc4+ {[%clk 0:00:09]} 29. Kd2 {[%clk 0:00:19]}  Ra4 {[%clk 0:00:07]} 30. Rg5 {[%clk 0:00:16]}  Rxa2+ {[%clk 0:00:07]} 31. Ke3 {[%clk 0:00:16]}  g6 {[%clk 0:00:08]} 32. f4 {[%clk 0:00:13]}  a5 {[%clk 0:00:08]} 33. Kd3 {[%clk 0:00:12]}  a4 {[%clk 0:00:08]} 34. Kc3 {[%clk 0:00:11]}  Ra1 {[%clk 0:00:06]} 35. Re5+ {[%clk 0:00:10]}  Kd6 {[%clk 0:00:06]} 36. Kb2 {[%clk 0:00:08]}  Rg1 {[%clk 0:00:06]} 37. Re2 {[%clk 0:00:07]}  Kxd5 {[%clk 0:00:05]} 38. Ka3 {[%clk 0:00:07]}  Ra1+ {[%clk 0:00:04]} 39. Kb2 {[%clk 0:00:07]}  Rf1 {[%clk 0:00:02]} 40. g3 {[%clk 0:00:05]}  Rf3 {[%clk 0:00:03]} 41. Ka2 {[%clk 0:00:02]}  Kc4 {[%clk 0:00:03]} 42. Kb2 {[%clk 0:00:02]}  Kb4 {[%clk 0:00:03]} 43. Ka2 {[%clk 0:00:02]}  Rb3 {[%clk 0:00:03]} 44. Re4+ {[%clk 0:00:01]}  Kb5 {[%clk 0:00:02]} 45. Re5+ {[%clk 0:00:02]}  Kb4 {[%clk 0:00:02]} 46. Re4+ {[%clk 0:00:02]}  Kb5 {[%clk 0:00:03]} 47. Re7 {[%clk 0:00:02]}  Rc3 {[%clk 0:00:03]} 48. Rb7+ {[%clk 0:00:02]}  Kc4 {[%clk 0:00:03]} 49. Rxh7 {[%clk 0:00:02]}  Rc2+ {[%clk 0:00:03]} 0-1


[Site "https://www.chess.com"]

[Event "Titled Tuesday Blitz February 15 Early 2022"]
[White "Eynullayev, Atilla"]
[Black "Barp, Alberto"]
[WhiteFideId "13413570"]
[BlackFideId "872555"]
[WhiteElo "1979"]
[BlackElo "2229"]
[Result "1-0"]
[Round "04"]
[TimeControl "180+1"]
[Date "2022.02.15"]
[WhiteClock "0:02:50"]
[BlackClock "0:01:29"]

1. e4 {[%clk 0:03:00]}  c6 {[%clk 0:02:53]} 2. d4 {[%clk 0:02:58]}  d5 {[%clk 0:02:54]} 3. e5 {[%clk 0:02:58]}  Bf5 {[%clk 0:02:53]} 4. Bd3 {[%clk 0:02:59]}  Bxd3 {[%clk 0:02:52]} 5. Qxd3 {[%clk 0:02:59]}  e6 {[%clk 0:02:52]} 6. Ne2 {[%clk 0:02:59]}  Qa5+ {[%clk 0:02:48]} 7. Nbc3 {[%clk 0:02:59]}  Qa6 {[%clk 0:02:47]} 8. Qh3 {[%clk 0:03:00]}  c5 {[%clk 0:02:46]} 9. Nxd5 {[%clk 0:03:00]}  exd5 {[%clk 0:02:16]} 10. Qc8+ {[%clk 0:02:59]}  Ke7 {[%clk 0:02:16]} 11. Qxc5+ {[%clk 0:02:59]}  Ke8 {[%clk 0:01:59]} 12. Qc8+ {[%clk 0:03:00]}  Ke7 {[%clk 0:01:56]} 13. Bd2 {[%clk 0:02:56]}  Qb6 {[%clk 0:01:29]} 14. Nf4 {[%clk 0:02:50]} 1-0


[Site "https://www.chess.com"]

[Event "Titled Tuesday Blitz February 15 Early 2022"]
[White "Ezat, Mohamed"]
[Black "Hess, Robert"]
[WhiteFideId "10600906"]
[BlackFideId "2022036"]
[WhiteElo "2386"]
[BlackElo "2557"]
[Result "1-0"]
[Round "04"]
[TimeControl "180+1"]
[Date "2022.02.15"]
[WhiteClock "0:00:08"]
[BlackClock "0:00:01"]

1. d4 {[%clk 0:02:54]}  g6 {[%clk 0:02:59]} 2. c4 {[%clk 0:02:53]}  Bg7 {[%clk 0:03:00]} 3. e4 {[%clk 0:02:51]}  e6 {[%clk 0:03:00]} 4. Nc3 {[%clk 0:02:51]}  Ne7 {[%clk 0:03:00]} 5. h4 {[%clk 0:02:50]}  h6 {[%clk 0:03:01]} 6. Nf3 {[%clk 0:02:49]}  d6 {[%clk 0:03:01]} 7. Bf4 {[%clk 0:02:47]}  b6 {[%clk 0:02:59]} 8. Qd2 {[%clk 0:02:46]}  Bb7 {[%clk 0:02:59]} 9. O-O-O {[%clk 0:02:46]}  Nd7 {[%clk 0:02:59]} 10. Kb1 {[%clk 0:02:45]}  a6 {[%clk 0:02:48]} 11. Bd3 {[%clk 0:02:44]}  Nf6 {[%clk 0:02:26]} 12. Bc2 {[%clk 0:02:36]}  Nh5 {[%clk 0:02:08]} 13. Bh2 {[%clk 0:02:34]}  Nf6 {[%clk 0:02:08]} 14. Qe2 {[%clk 0:02:30]}  Ng4 {[%clk 0:02:07]} 15. Bg3 {[%clk 0:02:30]}  h5 {[%clk 0:01:43]} 16. Ng5 {[%clk 0:02:25]}  O-O {[%clk 0:01:38]} 17. f3 {[%clk 0:02:18]}  Nh6 {[%clk 0:01:38]} 18. Bf2 {[%clk 0:02:13]}  b5 {[%clk 0:01:30]} 19. c5 {[%clk 0:02:10]}  b4 {[%clk 0:01:22]} 20. Na4 {[%clk 0:02:09]}  Bc6 {[%clk 0:01:20]} 21. g4 {[%clk 0:02:05]}  Qd7 {[%clk 0:01:08]} 22. b3 {[%clk 0:02:04]}  Bb5 {[%clk 0:01:08]} 23. Qe3 {[%clk 0:02:01]}  hxg4 {[%clk 0:00:46]} 24. h5 {[%clk 0:02:01]}  f6 {[%clk 0:00:47]} 25. hxg6 {[%clk 0:01:53]}  fxg5 {[%clk 0:00:47]} 26. Qxg5 {[%clk 0:01:53]}  Qe8 {[%clk 0:00:25]} 27. Rxh6 {[%clk 0:00:59]}  Bxh6 {[%clk 0:00:25]} 28. Qxh6 {[%clk 0:01:00]}  Qxg6 {[%clk 0:00:26]} 29. Qh4 {[%clk 0:01:01]}  Rxf3 {[%clk 0:00:13]} 30. Rg1 {[%clk 0:01:01]}  Rf4 {[%clk 0:00:06]} 31. Bg3 {[%clk 0:00:36]}  Rf7 {[%clk 0:00:05]} 32. cxd6 {[%clk 0:00:34]}  Rh7 {[%clk 0:00:03]} 33. e5 {[%clk 0:00:29]}  Nf5 {[%clk 0:00:03]} 34. Qf6 {[%clk 0:00:25]}  Qxf6 {[%clk 0:00:03]} 35. exf6 {[%clk 0:00:25]}  cxd6 {[%clk 0:00:04]} 36. Nb6 {[%clk 0:00:21]}  Rf8 {[%clk 0:00:03]} 37. d5 {[%clk 0:00:21]}  Rxf6 {[%clk 0:00:03]} 38. dxe6 {[%clk 0:00:22]}  Rg7 {[%clk 0:00:03]} 39. Nd5 {[%clk 0:00:21]}  Rxe6 {[%clk 0:00:03]} 40. Bxf5 {[%clk 0:00:21]}  Re2 {[%clk 0:00:02]} 41. Bxd6 {[%clk 0:00:18]}  Rd2 {[%clk 0:00:02]} 42. Ne7+ {[%clk 0:00:14]}  Kf7 {[%clk 0:00:02]} 43. Bxb4 {[%clk 0:00:15]}  Rd4 {[%clk 0:00:01]} 44. Bc8 {[%clk 0:00:09]}  Rxb4 {[%clk 0:00:01]} 45. Bb7 {[%clk 0:00:08]} 1-0


[Site "https://www.chess.com"]

[Event "Titled Tuesday Blitz February 15 Early 2022"]
[White "Fedoseev, Vladimir"]
[Black "Wong, Yinn Long"]
[WhiteFideId "24130737"]
[BlackFideId "5707684"]
[WhiteElo "2726"]
[BlackElo "2055"]
[Result "1-0"]
[Round "04"]
[TimeControl "180+1"]
[Date "2022.02.15"]
[WhiteClock "0:00:07"]
[BlackClock "0:00:01"]

1. e4 {[%clk 0:03:00]}  c5 {[%clk 0:03:00]} 2. Nf3 {[%clk 0:03:01]}  g6 {[%clk 0:03:00]} 3. d4 {[%clk 0:02:59]}  cxd4 {[%clk 0:03:00]} 4. Nxd4 {[%clk 0:03:00]}  Nc6 {[%clk 0:03:00]} 5. Nc3 {[%clk 0:03:00]}  Bg7 {[%clk 0:03:01]} 6. Be3 {[%clk 0:03:00]}  Nf6 {[%clk 0:03:01]} 7. Bc4 {[%clk 0:03:01]}  O-O {[%clk 0:03:02]} 8. Bb3 {[%clk 0:03:01]}  a5 {[%clk 0:03:02]} 9. O-O {[%clk 0:02:52]}  d6 {[%clk 0:03:03]} 10. f3 {[%clk 0:02:51]}  Nxd4 {[%clk 0:03:01]} 11. Bxd4 {[%clk 0:02:50]}  Bd7 {[%clk 0:03:02]} 12. a4 {[%clk 0:02:43]}  Bc6 {[%clk 0:03:02]} 13. Qd2 {[%clk 0:02:34]}  Nd7 {[%clk 0:03:02]} 14. Be3 {[%clk 0:02:32]}  Nc5 {[%clk 0:03:01]} 15. Bc4 {[%clk 0:02:30]}  Qb6 {[%clk 0:03:01]} 16. Nb5 {[%clk 0:02:15]}  Rac8 {[%clk 0:02:23]} 17. c3 {[%clk 0:02:10]}  Bxb5 {[%clk 0:01:55]} 18. Bxb5 {[%clk 0:02:08]}  Qc7 {[%clk 0:01:36]} 19. Rad1 {[%clk 0:02:08]}  Rfd8 {[%clk 0:01:32]} 20. Rfe1 {[%clk 0:02:02]}  h5 {[%clk 0:01:27]} 21. Qf2 {[%clk 0:01:58]}  Rf8 {[%clk 0:01:19]} 22. h4 {[%clk 0:01:43]}  Bf6 {[%clk 0:01:02]} 23. g3 {[%clk 0:01:37]}  Kh7 {[%clk 0:01:02]} 24. Kg2 {[%clk 0:01:36]}  Bg7 {[%clk 0:01:00]} 25. Rd5 {[%clk 0:01:31]}  e6 {[%clk 0:00:51]} 26. Rd2 {[%clk 0:01:29]}  Bh6 {[%clk 0:00:49]} 27. Bxh6 {[%clk 0:01:26]}  Kxh6 {[%clk 0:00:49]} 28. Red1 {[%clk 0:01:26]}  Rfd8 {[%clk 0:00:47]} 29. Qe3+ {[%clk 0:01:19]}  Kg7 {[%clk 0:00:47]} 30. b4 {[%clk 0:01:17]}  Na6 {[%clk 0:00:30]} 31. Rd3 {[%clk 0:01:05]}  e5 {[%clk 0:00:21]} 32. Qe1 {[%clk 0:00:57]}  Qb6 {[%clk 0:00:20]} 33. Qd2 {[%clk 0:00:45]}  Nc7 {[%clk 0:00:13]} 34. bxa5 {[%clk 0:00:43]}  Qxa5 {[%clk 0:00:12]} 35. c4 {[%clk 0:00:43]}  Qxd2+ {[%clk 0:00:08]} 36. R1xd2 {[%clk 0:00:44]}  Nxb5 {[%clk 0:00:08]} 37. cxb5 {[%clk 0:00:44]}  Rc4 {[%clk 0:00:09]} 38. Rxd6 {[%clk 0:00:42]}  Rxd6 {[%clk 0:00:09]} 39. Rxd6 {[%clk 0:00:42]}  Rxa4 {[%clk 0:00:10]} 40. Rd7 {[%clk 0:00:37]}  Ra2+ {[%clk 0:00:03]} 41. Kf1 {[%clk 0:00:37]}  b6 {[%clk 0:00:03]} 42. Rd6 {[%clk 0:00:32]}  Ra3 {[%clk 0:00:04]} 43. Ke2 {[%clk 0:00:29]}  Ra2+ {[%clk 0:00:04]} 44. Kd3 {[%clk 0:00:29]}  Ra3+ {[%clk 0:00:04]} 45. Kc4 {[%clk 0:00:29]}  Rxf3 {[%clk 0:00:04]} 46. Rxb6 {[%clk 0:00:29]}  Rxg3 {[%clk 0:00:05]} 47. Ra6 {[%clk 0:00:29]}  g5 {[%clk 0:00:05]} 48. hxg5 {[%clk 0:00:28]}  h4 {[%clk 0:00:05]} 49. b6 {[%clk 0:00:25]}  Rg1 {[%clk 0:00:06]} 50. Kc5 {[%clk 0:00:17]}  Rb1 {[%clk 0:00:05]} 51. Ra2 {[%clk 0:00:15]}  Kg6 {[%clk 0:00:06]} 52. Rg2 {[%clk 0:00:15]}  h3 {[%clk 0:00:03]} 53. Rh2 {[%clk 0:00:14]}  Rb3 {[%clk 0:00:04]} 54. Rf2 {[%clk 0:00:11]}  Kxg5 {[%clk 0:00:03]} 55. Rxf7 {[%clk 0:00:11]}  h2 {[%clk 0:00:03]} 56. Rh7 {[%clk 0:00:11]}  Rb2 {[%clk 0:00:03]} 57. b7 {[%clk 0:00:11]}  Kf4 {[%clk 0:00:02]} 58. Kc6 {[%clk 0:00:10]}  Kxe4 {[%clk 0:00:01]} 59. Rxh2 {[%clk 0:00:08]}  Rc2+ {[%clk 0:00:01]} 60. Rxc2 {[%clk 0:00:07]} 1-0


[Site "https://www.chess.com"]

[Event "Titled Tuesday Blitz February 15 Early 2022"]
[White "Galchenko, Matvey"]
[Black "Shtyka, Sergey"]
[WhiteFideId "24175480"]
[BlackFideId "4138465"]
[WhiteElo "2453"]
[BlackElo "2014"]
[Result "1-0"]
[Round "04"]
[TimeControl "180+1"]
[Date "2022.02.15"]
[WhiteClock "0:00:46"]
[BlackClock "0:01:51"]

1. c4 {[%clk 0:02:58]}  c5 {[%clk 0:03:00]} 2. g3 {[%clk 0:02:58]}  Nc6 {[%clk 0:03:00]} 3. Bg2 {[%clk 0:02:59]}  g6 {[%clk 0:03:00]} 4. Nc3 {[%clk 0:03:00]}  Bg7 {[%clk 0:03:01]} 5. Nf3 {[%clk 0:03:00]}  Nf6 {[%clk 0:03:01]} 6. O-O {[%clk 0:03:00]}  O-O {[%clk 0:03:02]} 7. d4 {[%clk 0:02:59]}  cxd4 {[%clk 0:03:01]} 8. Nxd4 {[%clk 0:03:00]}  Nxd4 {[%clk 0:03:02]} 9. Qxd4 {[%clk 0:02:59]}  d6 {[%clk 0:03:03]} 10. Qd2 {[%clk 0:02:58]}  Ng4 {[%clk 0:03:02]} 11. b3 {[%clk 0:02:24]}  Ne5 {[%clk 0:03:02]} 12. Bb2 {[%clk 0:02:22]}  Nc6 {[%clk 0:03:01]} 13. Rfd1 {[%clk 0:02:19]}  Bf5 {[%clk 0:03:01]} 14. Rac1 {[%clk 0:02:11]}  Rc8 {[%clk 0:03:00]} 15. Nd5 {[%clk 0:02:00]}  Bxb2 {[%clk 0:02:54]} 16. Qxb2 {[%clk 0:02:01]}  Be6 {[%clk 0:02:53]} 17. Nf4 {[%clk 0:01:57]}  Qa5 {[%clk 0:02:46]} 18. c5 {[%clk 0:01:37]}  dxc5 {[%clk 0:02:31]} 19. Nxe6 {[%clk 0:01:37]}  fxe6 {[%clk 0:02:31]} 20. Bh3 {[%clk 0:01:38]}  Nd4 {[%clk 0:02:20]} 21. Rxd4 {[%clk 0:01:30]}  cxd4 {[%clk 0:02:16]} 22. Bxe6+ {[%clk 0:01:29]}  Kg7 {[%clk 0:02:12]} 23. Qxd4+ {[%clk 0:01:16]}  Kh6 {[%clk 0:02:08]} 24. Bxc8 {[%clk 0:00:59]}  Qxa2 {[%clk 0:02:03]} 25. Qe3+ {[%clk 0:00:57]}  g5 {[%clk 0:01:59]} 26. Qxe7 {[%clk 0:00:52]}  Rg8 {[%clk 0:01:59]} 27. Bf5 {[%clk 0:00:46]}  Rg7 {[%clk 0:01:51]} 28. Qf6+ {[%clk 0:00:46]} 1-0


[Site "https://www.chess.com"]